Cogmind - Beta 16 *** ADVENTURER MODE // 2025.10.24 @ 19:03:27 Player: Vidali Result: Destroyed by S-10 Pest with Light Assault Rifle Performance ------------- Evolutions (0) 0 Regions Visited (2) 400 Robots Destroyed (18) 90 Value Destroyed (586) 586 Prototype IDs (2) 40 Alien Tech Used (0) 0 Bonus (0) 0 TOTAL SCORE: 1116 Bonus ------- None Cogmind --------- Core Integrity 0/250 Matter 290/300 Energy 170/170 System Corruption 0% Temperature Cool (0) Movement Rolling (110) Location -10/Subcaves Parts ------- > --- POWER (1) -------- Makeshift Power Source > --- PROPULSION (2) --- Subdweller Monowheel > --- UTILITY (2) ------ Small Storage Unit > --- WEAPON (2) ------- Advanced Beam Cannon > --- INVENTORY (8) ---- Ion Engine Machine Analyzer Small Laser Advanced Beam Cannon Subdweller Machine Gun Datajack Peak State ------------ > --- POWER ------------ Makeshift Power Source > --- PROPULSION ------- Aluminum Leg > --- UTILITY ---------- Small Storage Unit Terrain Scanner > --- WEAPON ----------- Advanced Beam Cannon > --- INVENTORY -------- Ion Engine Wheel Machine Analyzer Small Laser Advanced Beam Cannon Datajack [Rating: 11] Favorites ----------- Power Light Ion Engine Engine Light Ion Engine Propulsion Aluminum Leg Leg Aluminum Leg Wheel Wheel Utility Small Storage Unit Device Terrain Scanner Storage Small Storage Unit Weapon Advanced Beam Cannon Energy Gun Medium Laser Energy Cannon Advanced Beam Cannon Launcher Grenade Launcher Build | -11 -10 -10 ------- Run | Yrd Mat Sub Slots Evolved . | . . . Power . | . . . Propulsion . | . . . Utility . | . . . Weapon . | . . . Parts Attached 12 | 5 4 3 Power 2 | 1 . 1 Engine 2 | 1 . 1 Core . | . . . Reactor . | . . . Propulsion 4 | 2 . 2 Treads . | . . . Leg 2 | 2 . . Wheel 2 | . . 2 Hover . | . . . Flight . | . . . Utility 2 | . 2 . Device 1 | . 1 . Storage 1 | . 1 . Processor . | . . . Hackware . | . . . Protection . | . . . Artifact . | . . . Weapon 4 | 2 2 . Energy Gun 2 | 2 . . Energy Cannon 1 | . 1 . Ballistic Gun . | . . . Ballistic Cannon . | . . . Launcher 1 | . 1 . Special Weapon . | . . . Impact Weapon . | . . . Slashing Weapon . | . . . Piercing Weapon . | . . . Special Melee Weapon . | . . . Unidentified Prototypes . | . . . Parts Lost 7 | . 3 4 Power 1 | . . 1 Propulsion 3 | . 1 2 Utility 1 | . . 1 Weapon 2 | . 2 . Highest Loss Streak 3 | . 2 3 To Critical Strikes . | . . . Average Backups 3 | . 2 4 Power . | . 1 1 Propulsion . | . . . Utility . | . . . Weapon 1 | . 1 2 Tool/Special . | . . . Unused Backups 5 | . . 5 Power 1 | . . 1 Propulsion . | . . . Utility 1 | . . 1 Weapon 2 | . . 2 Tool/Special 1 | . . 1 Average Slot Usage (%) 72 | . 76 63 Engine 13 | . 14 13 Leg 17 | . 21 8 Wheel 1 | . . 4 Device 8 | . 8 8 Storage 11 | . 9 14 Energy Gun 8 | . 13 . Energy Cannon 7 | . 4 14 Launcher 2 | . 3 . Peak Build Rating 11 | 5 7 11 Average Rating 6 | 3 6 8 On Entrance 4 | . 5 7 Avg Prop Armor Cover (%) 11 | . . 11 Naked Turns . | . . . Heaviest Build 14 | 6 14 14 Greatest Support 20 | 20 20 20 Greatest Overweight (x) 4 | 1 1 4 Average Overweight (x) . | . . 1 Largest Inventory Capacity 8 | 5 8 8 Average Capacity 7 | 5 7 8 Most Carried 7 | 2 4 7 Average Carried 3 | 1 2 4 Final Capacity 8 | 5 8 8 Final Carried 6 | 2 4 6 Class Distribution -------------------- 100% | Mutant Dominant Class ---------------- Mutant | -10/Materials Mutant | -10/Subcaves Resources | -11 -10 -10 ----------- Run | Yrd Mat Sub Matter Collected 360 | 221 119 20 Remotely . | . . . Salvage Created 582 | . 316 266 Parts 27 | . 15 12 Haulers Intercepted . | . . . Recyclers Shooed . | . . . Parts Field Recycled . | . . . Retrieved Matter . | . . . Parts Self-Destructed . | . . . Prevented . | . . . Parts Restored . | . . . Kills | -11 -10 -10 ------- Run | Yrd Mat Sub Combat Hostiles Destroyed 16 | . 10 6 Guns 7 | . 7 . Cannons 6 | . . 6 AOE 3 | . 3 . Classes Destroyed 4 | . 3 1 Watcher 2 | . 2 . Swarmer 3 | . 3 . Grunt 7 | . 7 . Subdweller 6 | . . 6 Best Kill Streak 4 | . 4 2 Combat Bots Only 4 | . 4 2 Max Kills in Single Turn 3 | . 3 1 Gunslinging . | . . . Exploded 3 | . 3 . Melee . | . . . Uniques/NPCs Destroyed . | . . . Combat | -11 -10 -10 -------- Run | Yrd Mat Sub Hostile Shots Fired 102 | . 68 34 Missed 25 | . 16 9 Hits 77 | . 52 25 Projectile 77 | . 52 25 Critical Strikes 1 | . . 1 Damage Taken 859 | . 465 394 Core 251 | . 112 139 Absorbed by Shields . | . . . Ignored by Resistances 257 | . 147 110 Core Remaining (%) 100 | 100 . . Volleys Fired 85 | . 48 37 Largest 2 | . 2 1 Hottest 90 | . 90 68 Shots Fired 102 | . 65 37 Gun 55 | . 55 . Cannon 43 | . 6 37 Launcher 4 | . 4 . Special . | . . . Kinetic . | . . . Thermal 98 | . 61 37 Explosive 4 | . 4 . Electromagnetic . | . . . Robot Hit Streak 15 | . 15 13 Robot Miss Streak 4 | . 4 1 Penetration Max . | . . . Secondary Targets . | . . . Shots Hit Robots 82 | . 49 33 Core Hits 31 | . 21 10 Critical Kills . | . . . Critical Parts Destroyed . | . . . Critical Strikes 3 | . 3 . Burn 3 | . 3 . Melee Attacks . | . . . Impact . | . . . Slashing . | . . . Piercing . | . . . Sneak Attacks . | . . . Combat Hostiles . | . . . Follow-up Attacks . | . . . Damage Inflicted 1634 | . 981 653 Guns 526 | . 526 . Cannons 715 | . 62 653 Explosions 393 | . 393 . Melee . | . . . Ramming . | . . . Kinetic . | . . . Thermal 1241 | . 588 653 Explosive 393 | . 393 . Electromagnetic . | . . . Impact . | . . . Slashing . | . . . Piercing . | . . . Highest Corruption . | . . . Average Corruption . | . . . Corruption Purged . | . . . Corruption Blocked . | . . . Overload Shots . | . . . Overflow Damage . | . . . Projectiles . | . . . Explosions . | . . . Melee . | . . . Knockbacks . | . . . Impact . | . . . Kinetic . | . . . Secondary . | . . . Self-Inflicted Damage 9 | . 9 . Shots 1 | . 1 . Rammed . | . . . Targets Rammed . | . . . Kicked . | . . . Crushed . | . . . Highest Temperature 360 | . 360 32 Average Temperature 94 | . 110 14 Received Heat Transfer 354 | . 279 75 Effects 2 | . 2 . Interference 2 | . 2 . Siege Activations . | . . . Martial Activations . | . . . Shielding Activations . | . . . Robots Disrupted . | . . . Combat Hostiles . | . . . Robots Corrupted . | . . . Combat Hostiles . | . . . Parts Fried . | . . . Impact Corruptions . | . . . Robots Melted . | . . . Combat Hostiles . | . . . Parts Melted 5 | . 3 2 Heat Transferred 3000 | . 1816 1184 Parts Sabotaged . | . . . Parts Stolen . | . . . Parts Stripped . | . . . Power Chain Reactions . | . . . Alert | -11 -10 -10 ------- Run | Yrd Mat Sub Maximum Alert Level . | . . . Low Security (%) 100 | 100 100 . Level 1 . | . . . Level 2 . | . . . Level 3 . | . . . Level 4 . | . . . Level 5 . | . . . High Security . | . . . Max Security . | . . . Peak Influence 133 | . 133 . Initial . | . . . Average 26 | . 27 . Influence Increases 351 | . 351 . Destroy 0b10 Robot/C 200 | . 200 . Destroy 0b10 Robot/NC 10 | . 10 . Destroy Leader 54 | . 54 . Successful Hack 40 | . 40 . Disable Machine 18 | . 18 . Destroy Structure 14 | . 14 . Lose Combat Pursuer 15 | . 15 . Influence Decreases 351 | . 351 . Time Decay 321 | . 321 . Lost Part 30 | . 30 . Squads Dispatched 2 | . 2 . Investigation 2 | . 2 . Extermination . | . . . Reinforcement . | . . . Assault . | . . . Garrison . | . . . Intercept . | . . . Searches Triggered . | . . . Construction Impeded . | . . . Haulers Reinforced . | . . . Active Scanning Responses . | . . . Cargo Convoy Interrupts . | . . . Stealth | -11 -10 -10 --------- Run | Yrd Mat Sub Distress Signals 1 | . 1 . Communications Jammed . | . . . Distress Signals . | . . . Times Spotted 23 | . 15 8 Peak Tracking Total 4 | . 4 2 Tactical Retreats 1 | . 1 . Traps | -11 -10 -10 ------- Run | Yrd Mat Sub Traps Triggered 2 | . 2 . Indirectly . | . . . Trap Hack Attempts . | . . . Triggered . | . . . Disarmed . | . . . Reprogrammed . | . . . Reused . | . . . Traps Extracted . | . . . Installed . | . . . Triggered . | . . . Machines | -11 -10 -10 ---------- Run | Yrd Mat Sub Machines Disabled 2 | . 2 . Max in Single Turn 1 | . 1 . Machines Repaired . | . . . Machines Dismantled . | . . . Machines Sabotaged . | . . . Overloaded Fab Kills . | . . . Hacking | -11 -10 -10 --------- Run | Yrd Mat Sub Machines Accessed 7 | . 7 . Terminals 7 | . 7 . Fabricators . | . . . Repair Stations . | . . . Recycling Units . | . . . Scanalyzers . | . . . Garrison Access . | . . . Total Hacks 20 | . 20 . Successful 13 | . 13 . Failed 7 | . 7 . Catastrophic 1 | . 1 . Database Lockouts . | . . . Manual 14 | . 14 . Terminals 20 | . 20 . Fabricators . | . . . Repair Stations . | . . . Recycling Units . | . . . Scanalyzers . | . . . Garrison Access . | . . . Terminal Hacks 7 | . 7 . Part Schematic 2 | . 2 . Prototype ID Bank 2 | . 2 . Alert Level 1 | . 1 . Hauler Manifests 1 | . 1 . Zone Layout 1 | . 1 . Fabricator Hacks . | . . . Repair Station Hacks . | . . . Recycling Unit Hacks . | . . . Scanalyzer . | . . . Garrison Access Hacks . | . . . Unauthorized Hacks 6 | . 6 . Terminals 6 | . 6 . Assimilate 6 | . 6 . Fabricators . | . . . Repair Stations . | . . . Recycling Units . | . . . Scanalyzers . | . . . Garrison Access . | . . . Data Cores Recovered . | . . . Used . | . . . Hacking Detections 6 | . 6 . Full Trace Events 2 | . 2 . Feedback Events . | . . . Feedback Blocked . | . . . Robot Schematics Acquired . | . . . Robots Built . | . . . Authchips . | . . . Time . | . . . Total Robot Build Rating . | . . . Part Schematics Acquired 2 | . 2 . Parts Built . | . . . Authchips . | . . . Time . | . . . Total Part Build Rating . | . . . Part Studies Acquired . | . . . Parts Repaired . | . . . Time . | . . . Parts Recycled . | . . . Recycled Matter . | . . . Retrieved Matter . | . . . Retrieved Components . | . . . Parts Scanalyzed . | . . . Part Schematics Acquired . | . . . Parts Damaged . | . . . Bothacking | -11 -10 -10 ------------ Run | Yrd Mat Sub Used RIF Installer . | . . . Robots Hacked . | . . . Non-combat . | . . . Combat . | . . . Robot Hacks Applied . | . . . Relay Couplers Released . | . . . Fabnet Peak Effective % . | . . . Robots Rewired . | . . . Allies Hacked . | . . . Hacks Repelled . | . . . Allies | -11 -10 -10 -------- Run | Yrd Mat Sub Total Allies . | . . . Largest Group . | . . . Highest-Rated Group . | . . . Highest-Rated Ally . | . . . Total Orders . | . . . Ally Attacks . | . . . Total Damage . | . . . Kills . | . . . Allies Corrupted . | . . . Allies Melted . | . . . Intel | -11 -10 -10 ------- Run | Yrd Mat Sub Active Infowar (turns) 1066 | . 735 331 Terrain 1066 | . 735 331 Robot Analysis Total . | . . . Derelict Logs Recovered . | . . . Drone Launches . | . . . Drone Recoveries . | . . . Exploration | -11 -10 -10 ------------- Run | Yrd Mat Sub Turns Passed 1760 | 55 1167 538 Spaces Moved 933 | 43 610 280 Core 59 | 13 . 46 Treads . | . . . Legs 751 | 30 610 111 Wheels 123 | . . 123 Hover . | . . . Flight . | . . . Fastest Speed 50 | 50 120 95 Average Speed 145 | 101 141 161 Slowest Speed 250 | 120 190 250 Overloaded Moves . | . . . Propulsion Burnouts . | . . . Robots Hopped . | . . . Potential Cave-ins . | . . . Cave-ins Triggered . | . . . Exploration Rate (%) 39 | 3 88 27 Regions Visited 2 Branch Regions 1 Pre-discovered Areas 1 | . . 1 Known Exits Taken . | . . . Unknown Exits Taken 2 | 1 1 . Scrap Searched 3 | . . 3 Spaces Dug . | . . . Terrain Destroyed 24 | . 24 . Melee . | . . . Projectile . | . . . AOE 24 | . 24 . Terrain Rammed . | . . . Walls Destroyed . | . . . Machines Disabled . | . . . Actions | -11 -10 -10 --------- Run | Yrd Mat Sub Total 1233 | 54 849 330 Wait 187 | . 182 5 Move 931 | 42 609 280 Hop . | . . . Pick Up 17 | 7 5 5 Fast Attach . | . . . Attach 11 | 5 3 3 Detach . | . . . Swap 2 | . 2 . Drop . | . . . Fire 85 | . 48 37 Melee . | . . . Ram . | . . . Kick . | . . . Crush . | . . . Escape Stasis . | . . . Rewire . | . . . Trap . | . . . Miscellaneous . | . . . Route ------- -11/Scrapyard -10/Materials (discovered 5 exits: [*Mat x3] / [*Min] / [*Sub]) -10/Subcaves History --------- Turn | Location | Event 9 | -11/Scrapyard | Discovered new exit (range 15) 56 | -11/Scrapyard | Entered Materials 270 | -10/Materials | Discovered new exit (range 10) 304 | -10/Materials | Build established: Mutant 330 | -10/Materials | Discovered new exit (range 13) 421 | -10/Materials | Discovered new exit (range 16) 491 | -10/Materials | Discovered new exit (range 12) 656 | -10/Materials | Derelicts attacked the area 1206 | -10/Materials | Discovered new exit (range 10) 1223 | -10/Materials | Entered Subcaves 1224 | -10/Subcaves | Approached by a straggling Scientist 1264 | -10/Subcaves | Learned location of Zion (-6) 1264 | -10/Subcaves | Met a Zionite searching for "candidates" 1346 | -10/Subcaves | Core integrity fell below 50% 1414 | -10/Subcaves | Shifting Twisted Machinery released Sub. Beam Cannon 1416 | -10/Subcaves | Shifting Twisted Machinery released Mak. Power Source 1563 | -10/Subcaves | Core integrity fell below 20% 1595 | -10/Subcaves | Lost 3 parts (2n1u) 1761 | -10/Subcaves | Destroyed by S-10 Pest with Light Assault Rifle Last Messages --------------- to Scrap Shield. 01558_ Aluminum Leg destroyed. 01561_ Q1-ND0(R) affixes Scrap Shield Fragment to Scrap Shield. 01564_ Wheel destroyed. 01573_ Sub. Optics melted. 01573_ Q1-ND0(R) destroyed. 01575_ Acquired Sub. Machine Gun. 01616_ Searching scrap... 01616_ Found Mak. Light Armor Plating. 01616_ Found 67 Matter. 01619_ Searching scrap... 01619_ Found Battle Cannon. 01619_ Found 48 Matter. 01621_ Searching scrap... 01621_ Found Battle Rifle. 01621_ Found Sub. Beam Cannon. 01621_ Found 38 Matter. 01686_ WN-L4A(R) destroyed. 01695_ Acquired Sub. Monowheel. Map ----- +----------------------------------------------------+ | ??????????????????????????? ## " # | | ????????????????????????????# # ### ## ## | | ????????????????????????????## ### ### | | ???????????????????????????## ### ## | | ??????????????????????###### ## ######?#""" | | ??????????????????????# ########??????### | | ??????????????????????# ###?????????????##### | | ??????????????????????## ##????????????????? | | ???????????????????????## ##???????????????? | | ????????????????####???## ######??????????? | | ????????????????# #### #??????????? | | ???????????????## #?????????? | | ???????????????# ###### #?????????? | | ???????????????# ## ##?????? #?????????? | | ???????????????# ???## #???????? #????????? | | ?????????????????????### ##??????????#????????? | | ???????????????????????## ##????????????????????? | | ??????????????????????#### ####??????????????????? | | ??????????????????????# ## ###????????????????? | | ??????????????????????# ##???????????????? | | ??????????????????????# #???????????????? | | ??????????????????????## ## ##???????????????? | | ???????????????????????# ##?###????????????????? | | ???????????????????????## #?????????????????????? | | ??????????????# Y # ## ## #??????????????????? | | ?????????? s @ #??????????????????? | | ?????????? #?????????????????? | | ?????????? ##### ## #????????????????? | | ????????????????????## ##?## #???????????????? | | ?????????????????????# #????? #???????????????? | | ????????????????????? #?????? ??????????????? | | ???????????????????? ??????? ?????????????? | | ??????????????????? ???????? #???????????? | | ?????????????????? ?????????#????????????? | | ????????????????? ??????????????????????? | | ???????????????? ??????????????????????? | | ??????????????? ??????????????????????? | | ???????????????? ### ??????????????????????? | | ?????????????????????# ??????????????????????? | | ?????????????????????# #??????????????????????? | | ??????????????????????? ##???????????????????????? | | ?????????????????????????????????????????????????? | | ?????????????????????????????????????????????????? | | ?????????????????????????????????????????????????? | | ?????????????????????????????????????????????????? | | ?????????????????????????????????????????????????? | | ?????????????????????????????????????????????????? | | ?????????????????????????????????????????????????? | | ?????????????????????????????????????????????????? | | ?????????????????????????????????????????????????? | +----------------------------------------------------+ Best States ------------- Heat Dissipation 25 Energy Generation 15 Energy Capacity 170 Matter Stores 300 Matter Capacity 300 Sight Range 16 Terrain Scan Range 14 Terrain Scan Density 10 Resistance: KI 20 Resistance: TH 20 Resistance: EX 20 Resistance: EM 20 Resistance: I 20 Resistance: S 20 Resistance: P 20 Evasion (%) 55 Offensive Hacking 10 Item Schematics ----------------- Ion Engine | -10/Materials | Hacked Med. Laser | -10/Materials | Hacked Robot Schematics ------------------ None Fabricated ------------ Nothing Repaired ---------- Nothing Studied --------- None Alien Tech Used ----------------- None Achievements -------------- DATA ERROR: Steam Global Achievement% I Have A Map? Organ Harvest Challenges ------------ None Game ------ Seed CombatLinearInterrupter Manual? 0 Play Time 00:20:09 Cumulative 266.5 hours Start 2025.10.24 @ 18:39:53 End 2025.10.24 @ 19:03:27 Sessions 1 Manual Loads 0 Difficulty Adventurer Special Mode None Game No. 158 Rogue 94 Adventurer 64 Explorer 0 Win Type - Total 13 Types 10/0/0/3/0/0/0/0/0/0 Lore% 68 Gallery% 67 Achievement% 36 Wizard Run 0 Options --------- Layout 2 ASCII 0 Keyboard 0 Movement Mouse Keybinds 0 Fullscreen 1 Font 32/SmallcapsGlow Map View 50x44 Zoom Use 0% Tactical HUD 1 Map Filters NONE Filters NONE Steam 1 RUN: 976385f3-77f8-4ef7-b002-9f1eb186ddb9